bitfinex/quotes_ETHUSD_20240820
["timestamp","ask_amount","ask_price","bid_price","bid_amount"]
[1724153281175,3.76458,2656.4,2655.8,0.2425]
[1724153281416,3.76472,2656.3,2655.9,2.269]
[1724153281998,3.76481,2656.2,2655.7,2.269]
[1724153282315,3.76481,2656.2,2655.1,0.256177]
[1724153282316,3.76514,2656.0,2655.1,0.256177]
[1724153282485,3.76534,2655.8,2655.2,2.4805]
[1724153283728,3.76514,2656.0,2655.2,2.4805]
[1724153283912,3.76514,2656.0,2655.3,2.2661]
[1724153284423,3.76501,2656.1,2655.4,2.2661]
[1724153285621,5.32254618,2656.1,2655.4,2.2661]
[1724153285820,3.76514,2656.0,2655.5,0.603202]
[1724153286144,7.53034,2656.0,2655.4,2.2661]
[1724153286282,5.32267618,2656.0,2655.4,2.2661]
[1724153287534,3.76514,2656.0,2655.4,2.2661]
[1724153287733,3.76514,2656.0,2655.6,2.3811]
[1724153288505,3.76534,2655.8,2655.6,2.3811]
[1724153288736,3.76534,2655.8,2655.2,2.2608]
[1724153289925,5.32267618,2656.0,2655.3,2.2886]
[1724153290112,3.76523,2655.9,2655.3,2.2886]
[1724153290316,3.76523,2655.9,2655.4,0.605469]
[1724153290700,5.32267618,2656.0,2655.5,2.452]
[1724153291132,3.76514,2656.0,2655.5,2.452]
[1724153292900,5.32267618,2656.0,2655.5,2.452]
[1724153293432,3.76535,2655.8,2655.5,2.452]
[1724153293793,3.76536,2655.8,2655.2,2.4438]
[1724153294194,7.53078,2655.8,2655.2,2.4438]
[1724153294401,3.76536,2655.8,2655.2,3.0904337]
[1724153295435,3.76536,2655.8,2655.3,2.2558]
[1724153295735,3.76524,2655.9,2655.3,2.2558]
[1724153297332,5.32265618,2656.0,2655.3,2.2558]
[1724153297333,3.76512,2656.0,2655.4,2.3447]
[1724153297519,3.76512,2656.0,2655.4,3.02043837]
[1724153297853,5.32265618,2656.0,2655.4,3.02043837]
[1724153298194,9.08778618,2656.0,2655.4,3.02043837]
[1724153298397,5.32265618,2656.0,2655.4,3.02043837]
[1724153298703,3.76512,2656.0,2655.4,3.02043837]
[1724153298904,3.76512,2656.0,2655.4,2.3447]
[1724153300831,7.53027,2656.0,2655.4,2.3447]
[1724153301138,3.76512,2656.0,2655.4,2.3447]
[1724153301807,1.55753618,2656.1,2655.5,3.7657]
[1724153302009,3.76487,2656.2,2655.6,2.86167]
[1724153302223,3.76486,2656.2,2655.6,2.86167]
[1724153302423,1.594,2656.0,2655.6,2.86167]
[1724153302999,5.35906,2656.0,2655.6,2.86167]
[1724153303207,5.35915,2656.0,2655.6,2.4851]
[1724153303399,5.35922,2655.9,2655.6,2.4851]
[1724153303642,1.594,2655.7,2655.3,2.3539]
[1724153303811,1.594,2655.7,2655.3,37.3539]
[1724153304011,1.594,2655.7,2655.4,3.73531554]
[1724153305311,5.35922,2655.9,2655.4,3.73531554]
[1724153305650,5.35922,2655.9,2655.5,2.3874]
[1724153306008,1.594,2655.9,2655.5,2.3874]
[1724153306203,1.594,2655.9,2655.5,6.12271554]
[1724153306449,5.32255618,2656.1,2655.5,6.12271554]
[1724153307752,9.08759618,2656.1,2655.5,6.12271554]
[1724153307910,3.76506,2656.0,2655.5,6.12271554]
[1724153309312,3.76354687,2656.0,2655.5,6.12271554]
[1724153309522,5.32255618,2656.1,2655.6,0.98580311]
[1724153309829,1.55753618,2656.1,2655.7,2.3497]
[1724153311479,5.32231618,2656.2,2655.7,2.3497]
[1724153311786,5.32231618,2656.2,2655.8,3.73531554]
[1724153311954,1.55753618,2656.2,2655.8,3.73531554]
[1724153312155,1.55753618,2656.3,2655.9,2.3869]
[1724153313439,1.55753618,2656.3,2655.9,37.3869]
[1724153314154,5.72813569,2656.4,2655.9,37.3869]
[1724153314155,1.55753618,2656.2,2655.9,37.3869]
[1724153314357,5.72866963,2656.4,2655.9,37.3869]
[1724153314358,1.55753618,2656.3,2656.0,3.73531554]
[1724153315627,1.55753618,2656.2,2656.0,3.73531554]
[1724153315782,1.55753618,2656.3,2656.0,3.73531554]
[1724153316891,5.32210618,2656.4,2656.0,3.73531554]
[1724153318170,3.7647,2656.3,2656.0,3.73531554]
[1724153318342,3.7647,2656.3,2655.9,37.3869]
[1724153318533,5.32223618,2656.3,2655.9,37.3869]
[1724153318878,5.32202618,2656.4,2655.9,2.3869]
[1724153321186,9.08660618,2656.4,2655.9,2.3869]
[1724153321485,9.08665618,2656.4,2655.9,2.3869]
[1724153321688,3.76464,2656.3,2655.9,2.3869]
[1724153323561,3.76464,2656.3,2655.9,3.7433453]
[1724153324871,5.32204618,2656.4,2655.9,2.3869]
[1724153325076,5.32204618,2656.4,2655.9,37.3869]
[1724153326487,1.594,2656.3,2655.9,37.3869]
[1724153326689,1.594,2656.3,2655.9,41.12221554]
[1724153328016,1.594,2656.3,2655.9,6.12221554]
[1724153328224,1.594,2656.3,2655.9,2.3869]
[1724153328398,1.594,2656.3,2655.9,37.3869]
[1724153328580,1.594,2656.3,2655.9,35.0]
[1724153328780,1.594,2656.3,2656.0,2.4252]
[1724153330186,1.594,2656.1,2656.0,2.4252]
[1724153330506,1.594,2656.3,2656.0,2.4252]
[1724153331211,1.594,2656.4,2656.0,2.4252]
[1724153331412,1.594,2656.4,2656.0,6.16051554]
[1724153331766,1.594,2656.4,2656.0,2.4252]
[1724153332315,1.594,2656.4,2656.1,35.0]
[1724153334302,1.594,2656.4,2656.2,2.4115]
[1724153334510,5.32175618,2656.6,2656.2,2.4115]
[1724153334823,6.91575618,2656.6,2656.2,2.4115]
[1724153335526,10.68004618,2656.6,2656.2,2.4115]
[1724153335688,6.91575618,2656.6,2656.2,37.4115]
[1724153337126,5.35849,2656.4,2656.0,2.2965]
[1724153337433,1.594,2656.2,2656.0,37.52615]
[1724153338625,1.594,2656.2,2656.0,2.52615]
[1724153340031,3.76508,2656.0,2655.6,2.3444]
[1724153340326,3.76508,2656.0,2655.7,35.0]
[1724153340327,5.35908,2656.0,2655.7,35.0]
[1724153341692,1.594,2656.0,2655.7,35.0]
[1724153341905,1.594,2656.0,2655.8,3.73444]
[1724153342347,1.594,2656.0,2655.6,2.3444]
[1724153342516,1.594,2656.0,2655.7,35.0]
[1724153343034,3.76492,2656.1,2655.7,35.0]
[1724153344026,1.594,2656.2,2655.7,35.0]
[1724153345055,1.594,2656.2,2655.8,2.419]
[1724153345209,1.594,2656.2,2655.9,3.73531554]
[1724153345408,5.32227618,2656.3,2655.8,2.419]
[1724153345409,1.55753618,2656.3,2655.8,2.419]
[1724153345606,5.35852,2656.4,2655.9,35.0]
[1724153345607,6.91603618,2656.4,2655.9,35.0]
[1724153346960,6.91603618,2656.4,2656.0,2.2677]
[1724153347511,6.91603618,2656.4,2656.1,35.0]
[1724153347811,6.91603618,2656.4,2656.1,38.72677]
[1724153348508,3.15153618,2656.4,2656.1,38.72677]
[1724153348952,1.594,2656.4,2656.1,38.72677]
[1724153350409,1.594,2656.4,2656.1,3.72677]
[1724153350646,1.594,2656.4,2656.0,2.2677]
[1724153350909,1.594,2656.4,2656.1,35.0]
[1724153352054,1.594,2656.4,2656.0,2.2677]
[1724153352259,3.15153618,2656.4,2656.0,2.2677]
[1724153352752,6.91607618,2656.4,2656.0,2.2677]
[1724153352982,6.91607618,2656.4,2656.1,3.72677]
[1724153353401,3.15153618,2656.4,2656.1,3.72677]
[1724153354207,6.91605618,2656.4,2656.1,3.72677]
[1724153355262,3.15153618,2656.4,2656.1,3.72677]
[1724153356097,3.15153618,2656.4,2656.0,2.2677]
[1724153356504,3.15153618,2656.4,2656.1,35.0]
[1724153357003,1.55753618,2656.4,2656.1,35.0]
[1724153358576,1.55753618,2656.4,2656.0,2.2677]
[1724153358792,0.41234,2656.3,2655.8,2.3672]
[1724153358964,0.41234,2656.2,2655.9,0.613268]
[1724153359298,0.41234,2656.1,2655.9,35.613268]
[1724153359484,1.594,2656.3,2655.9,35.613268]
[1724153359690,0.41234211,2656.2,2655.9,35.613268]
[1724153359904,1.594,2656.3,2655.9,35.613268]
[1724153360238,0.4123473,2656.2,2656.0,3.73531554]
[1724153360372,0.4123473,2656.1,2656.0,3.73531554]
[1724153361092,1.594,2656.3,2656.0,3.73531554]
[1724153361260,1.594,2656.3,2655.9,35.613268]
[1724153361261,0.41234223,2656.2,2656.1,3.73531554]
[1724153361465,0.41234223,2656.2,2655.9,35.613268]
[1724153361702,0.41234223,2656.1,2655.9,35.613268]
[1724153361898,1.594,2656.3,2655.9,35.613268]
[1724153362097,0.41235012,2656.2,2655.9,35.613268]
[1724153362298,0.41235012,2656.1,2655.9,35.613268]
[1724153362501,1.594,2656.3,2656.0,3.73531554]
[1724153362810,0.41235679,2656.2,2656.0,3.73531554]
[1724153362969,0.41235679,2656.1,2656.0,3.73531554]
[1724153364666,0.41235679,2656.1,2655.9,0.613268]
[1724153364910,1.594,2656.3,2656.0,35.0]
[1724153365072,0.4123426,2656.2,2656.0,35.0]
[1724153365269,1.55753618,2656.5,2656.0,35.0]
[1724153365499,1.96988271,2656.4,2656.0,35.0]
[1724153365674,0.41234653,2656.3,2656.1,3.5613268]
[1724153365873,0.41234653,2656.2,2656.1,3.5613268]
[1724153366105,0.41234653,2656.2,2655.9,0.613268]
[1724153366276,1.55753618,2656.4,2656.0,35.0]
[1724153366482,0.4122744,2656.3,2656.0,35.0]
[1724153366707,0.4122744,2656.2,2656.0,35.0]
[1724153367000,5.32202618,2656.4,2656.0,35.0]
[1724153367001,1.55753618,2656.4,2656.0,35.0]
[1724153367202,0.41228727,2656.3,2656.1,3.5613268]
[1724153367506,0.41228727,2656.2,2656.1,3.5613268]
[1724153367878,0.41228727,2656.3,2656.1,3.5613268]
[1724153368100,0.41228727,2656.2,2656.1,3.5613268]
[1724153368281,0.41228727,2656.3,2656.1,3.5613268]
[1724153368486,5.32203618,2656.4,2656.2,3.73531554]
[1724153368685,0.41229718,2656.3,2656.2,3.73531554]
[1724153368974,0.41229718,2656.3,2655.9,0.613268]
[1724153369168,5.32203618,2656.4,2656.0,35.0]
[1724153369169,0.41229718,2656.2,2656.0,35.0]
[1724153369371,5.32203618,2656.4,2656.0,35.0]
[1724153369598,0.41229449,2656.3,2656.1,3.5613268]
[1724153369819,0.41229449,2656.2,2656.1,3.5613268]
[1724153372985,0.41229449,2656.2,2655.9,0.613268]
[1724153373199,5.32202618,2656.4,2656.0,35.0]
[1724153373411,0.41216351,2656.3,2656.0,35.0]
[1724153373727,5.32202618,2656.4,2656.1,2.2974]
[1724153373728,1.55753618,2656.4,2656.1,2.2974]
[1724153373910,0.41216565,2656.3,2656.1,2.2974]
[1724153374221,1.594,2656.5,2656.1,2.2974]
[1724153374222,1.55753618,2656.5,2656.2,3.72974]
[1724153374518,0.4121826,2656.4,2656.1,2.2974]
[1724153374679,0.4121826,2656.3,2656.2,35.0]
[1724153376290,0.4121991,2656.3,2656.2,35.0]
[1724153376821,0.41219658,2656.3,2656.2,35.0]
[1724153376997,6.91582618,2656.6,2656.2,38.72974]
[1724153377200,0.41223973,2656.5,2656.2,38.72974]
[1724153377392,0.41223973,2656.4,2656.2,38.72974]
[1724153377603,0.41224295,2656.3,2656.2,38.72974]
[1724153377818,6.91582618,2656.6,2656.2,38.72974]
[1724153378019,3.15153618,2656.6,2656.3,3.73531554]
[1724153378248,0.41225734,2656.5,2656.3,3.73531554]
[1724153378395,0.41225734,2656.4,2656.1,2.2974]
[1724153378597,1.594,2656.6,2656.2,35.0]
[1724153378779,0.4122407,2656.5,2656.2,35.0]
[1724153378982,0.4122407,2656.4,2656.2,35.0]
[1724153379218,1.594,2656.6,2656.3,3.72974]
[1724153379416,0.41223412,2656.5,2656.3,3.72974]
[1724153379638,1.594,2656.6,2656.1,2.2974]
[1724153379835,0.41222508,2656.5,2656.2,35.0]
[1724153380049,0.41222508,2656.4,2656.2,35.0]
[1724153380253,1.594,2656.6,2656.2,35.0]
[1724153380400,0.41223249,2656.5,2656.3,3.72974]
[1724153380602,1.594,2656.6,2656.3,3.72974]
[1724153380801,0.41223432,2656.5,2656.1,2.2974]
[1724153381003,1.594,2656.6,2656.2,35.0]
[1724153381202,0.41223373,2656.5,2656.2,35.0]
[1724153381451,5.32160618,2656.7,2656.2,35.0]
[1724153381658,0.4122368,2656.6,2656.3,3.72974]
[1724153381953,0.41223851,2656.5,2656.3,3.72974]
[1724153382100,5.32160618,2656.7,2656.1,2.2974]
[1724153382302,5.32160618,2656.7,2656.2,35.0]
[1724153382303,0.4122373,2656.6,2656.2,35.0]
[1724153382646,0.4122373,2656.5,2656.2,35.0]
[1724153382855,1.55753618,2656.7,2656.2,35.0]
[1724153382995,0.41224713,2656.6,2656.3,3.73531554]
[1724153383198,0.41224713,2656.5,2656.3,3.73531554]
[1724153383405,6.91555618,2656.8,2656.1,6.06229]
[1724153383606,0.41224648,2656.7,2656.2,38.76474]
[1724153383842,0.41224648,2656.6,2656.2,38.76474]
[1724153384037,1.594,2656.8,2656.3,3.73531554]
[1724153384258,0.41227031,2656.7,2656.3,3.73531554]
[1724153384457,1.594,2656.8,2656.2,3.76474]
[1724153384668,0.41227137,2656.7,2656.2,3.76474]
[1724153384868,1.594,2656.8,2656.4,2.2641]
[1724153385075,0.41226696,2656.7,2656.4,6.02856]
[1724153385270,1.55753618,2656.9,2656.5,0.602856]
[1724153385456,1.55753618,2656.9,2656.4,2.2641]
[1724153385457,0.41226647,2656.8,2656.4,2.2641]
[1724153385660,0.41226647,2656.7,2656.4,2.2641]
[1724153385954,1.55753618,2656.9,2656.4,2.2641]
[1724153386161,0.41226875,2656.8,2656.4,2.2641]
[1724153386458,1.594,2656.8,2656.4,2.2641]
[1724153386671,1.594,2656.8,2656.4,2.866973]
[1724153387387,1.594,2656.8,2656.4,0.602873]
[1724153388345,5.35801,2656.8,2656.4,0.602873]
[1724153388549,0.41225083,2656.7,2656.2,6.03866]
[1724153388752,1.594,2656.8,2656.2,9.80337]
[1724153388944,1.594,2656.8,2656.3,3.76454]
[1724153389150,9.20668618,2657.0,2656.4,0.980315]
[1724153389382,0.41226534,2656.9,2656.4,0.980315]
[1724153389583,0.41226534,2656.8,2656.4,0.980315]
[1724153389790,9.20668618,2657.0,2656.4,0.980315]
[1724153390080,0.41226843,2656.9,2656.5,0.4744855]
[1724153390398,9.20668618,2657.0,2656.5,0.4744855]
[1724153390399,0.41226716,2656.8,2656.5,2.8508855]
[1724153390677,6.91528618,2657.0,2656.5,2.8508855]
[1724153390847,0.41226325,2656.9,2656.5,2.8508855]
[1724153391041,0.41226325,2656.8,2656.5,2.8508855]
[1724153391245,6.91528618,2657.0,2656.6,0.75956705]
[1724153391447,0.41226045,2656.9,2656.5,2.8508855]
[1724153391648,0.41226045,2656.8,2656.5,2.8508855]
[1724153391834,6.91528618,2657.0,2656.5,2.8508855]
[1724153392178,1.594,2656.8,2656.3,2.4505]
[1724153392388,3.8674,2656.8,2656.3,2.4505]
[1724153392689,1.594,2656.8,2656.3,2.4505]
[1724153392977,1.594,2656.8,2656.4,4.38599]
[1724153394909,3.15153618,2657.0,2656.5,2.4435]
[1724153395115,0.41226089,2656.9,2656.5,2.4435]
[1724153395272,0.41226089,2656.8,2656.5,2.4435]
[1724153395457,3.15153618,2657.0,2656.5,3.126449]
[1724153395653,0.41226725,2656.9,2656.5,3.126449]
[1724153395882,0.41226725,2656.8,2656.5,3.126449]
[1724153396187,6.91518618,2657.0,2656.5,3.126449]
[1724153396388,0.41227338,2656.9,2656.5,3.126449]
[1724153396690,6.91518618,2657.0,2656.6,0.7512439]
[1724153396691,0.41227338,2656.8,2656.6,0.7512439]
[1724153396994,5.35765,2657.0,2656.5,2.4435]
[1724153397289,0.41225507,2656.9,2656.5,2.4435]
[1724153397494,5.35765,2657.0,2656.5,2.4435]
[1724153397690,0.41226239,2656.9,2656.5,2.4435]
[1724153397985,5.35765,2657.0,2656.5,2.4435]
[1724153398189,0.41224982,2656.9,2656.5,3.126465]
[1724153398351,5.35765,2657.0,2656.5,3.126465]
[1724153398549,0.41224331,2656.9,2656.5,3.126465]
[1724153398791,5.35765,2657.0,2656.5,3.126465]
[1724153398997,0.41224035,2656.9,2656.6,0.3747985]
[1724153399156,5.35765,2657.0,2656.6,0.3747985]
[1724153399356,0.41224044,2656.9,2656.6,0.3747985]
[1724153399555,5.35765,2657.0,2656.6,0.3747985]
[1724153399889,1.594,2656.8,2656.5,0.682965]
[1724153400491,1.594,2656.8,2656.2,7.31]
[1724153400696,4.1763803,2656.7,2656.2,7.31]
[1724153400854,3.76419,2656.7,2656.2,7.31]
[1724153401891,3.83373618,2656.9,2656.3,6.23755]
[1724153402091,0.41224654,2656.8,2656.3,6.23755]
[1724153402392,1.594,2656.8,2656.4,1.354755]
[1724153404205,3.76422,2656.6,2656.2,7.31]
[1724153404362,2.4474,2656.5,2656.2,7.31]
[1724153404561,3.76422,2656.6,2656.2,7.31]
[1724153404997,5.35822,2656.6,2656.2,7.31]
[1724153405175,2.4474,2656.7,2656.2,7.31]
[1724153405176,2.4474,2656.7,2656.2,8.041]
[1724153405375,0.41209453,2656.6,2656.2,8.041]
[1724153405561,7.80548,2656.7,2656.2,8.041]
[1724153405759,0.41209719,2656.6,2656.2,8.041]
[1724153405960,7.80548,2656.7,2656.2,8.041]
[1724153406296,0.41210073,2656.6,2656.3,0.8041]
[1724153406455,4.0414,2656.7,2656.3,0.8041]
[1724153406661,0.41214726,2656.6,2656.3,0.8041]
[1724153406975,4.0414,2656.7,2656.3,0.8041]
[1724153407158,0.41213819,2656.6,2656.3,0.8041]
[1724153407364,3.15153618,2656.9,2656.4,3.17011]
[1724153407563,0.4121479,2656.8,2656.4,3.17011]
[1724153407795,0.4121479,2656.7,2656.4,3.17011]
[1724153408098,3.15153618,2656.9,2656.4,3.17011]
[1724153408099,3.15153618,2656.9,2656.5,0.693466]
[1724153408395,0.41216221,2656.8,2656.5,0.693466]
[1724153408594,0.41216221,2656.7,2656.5,0.693466]
[1724153408795,3.15153618,2656.9,2656.5,0.693466]
[1724153409000,0.4121373,2656.8,2656.5,0.693466]
[1724153409171,0.4121373,2656.7,2656.5,0.693466]
[1724153409501,3.15153618,2656.9,2656.5,0.693466]
[1724153409502,2.3238,2656.8,2656.5,0.693466]
[1724153409710,0.41213786,2656.7,2656.4,0.88451]
[1724153410000,2.3238,2656.8,2656.4,0.88451]
[1724153410204,2.0061274,2656.7,2656.4,0.88451]
[1724153410367,1.594,2656.7,2656.4,0.88451]
[1724153411677,2.2848,2656.5,2656.2,8.041]
[1724153411881,3.8788,2656.5,2656.2,7.31]
[1724153413397,3.76479,2656.2,2655.8,7.31]
[1724153413710,1.594,2656.0,2655.8,7.31]
[1724153414006,3.81393618,2656.3,2655.8,1.965]
[1724153414305,3.81393618,2656.3,2655.6,3.76555]
[1724153414306,1.594,2656.1,2655.6,3.76555]
[1724153414602,1.594,2656.1,2655.5,3.76569]
[1724153414603,0.41201687,2656.0,2655.5,3.76569]
[1724153414803,1.594,2656.1,2655.6,1.337869]
[1724153415569,1.594,2656.1,2655.4,9.613]
[1724153415570,1.594,2655.7,2655.4,7.31]
[1724153416078,1.594,2655.9,2655.4,7.31]
[1724153416880,2.4317,2656.2,2655.5,2.306]
[1724153417068,1.594,2656.0,2655.5,2.306]
[1724153417270,1.594,2656.0,2655.6,0.9616]
[1724153419799,1.594,2655.8,2655.6,0.9616]
[1724153420010,1.594,2655.8,2655.5,2.306]
[1724153420948,2.4317,2656.2,2655.5,2.306]
[1724153421126,1.594,2656.1,2655.5,6.07167]
[1724153421909,2.4317,2656.2,2655.5,9.83734]
[1724153422105,1.594,2656.0,2655.6,0.983734]
[1724153422771,2.4317,2656.2,2655.9,3.76519]
[1724153422772,1.594,2656.2,2655.9,3.76519]
[1724153423605,1.594,2656.2,2655.8,2.3456]
[1724153423910,1.594,2656.2,2655.6,0.983734]
[1724153423911,1.594,2656.0,2655.6,7.155654]
[1724153424071,3.94,2656.2,2655.7,0.7155654]
[1724153426838,1.594,2656.0,2655.7,0.7155654]
[1724153427003,2.3064,2655.7,2655.1,19.75]
[1724153427207,1.594,2655.3,2655.0,7.31]
[1724153427406,4.0723,2655.3,2655.0,2.588448]
[1724153427738,2.4783,2655.3,2654.8,6.23447]
[1724153427904,1.594,2655.3,2654.8,6.23447]
[1724153431303,1.594,2655.8,2655.2,2.499]
[1724153431529,1.594,2655.8,2655.2,6.26509]
[1724153431728,1.594,2655.8,2655.3,0.70182184]
[1724153431902,1.594,2655.8,2655.3,0.626509]
[1724153434230,1.594,2655.6,2655.3,0.626509]
[1724153434605,1.594,2655.8,2655.3,0.626509]
[1724153434814,1.594,2655.8,2655.4,0.6891569]
[1724153436251,1.594,2656.0,2655.5,6.09374674]
[1724153436553,1.594,2656.0,2655.5,2.32800674]
[1724153437347,1.594,2656.0,2655.6,0.07530395]
[1724153437652,1.594,2656.0,2655.6,0.30171608]
[1724153438822,1.594,2656.0,2655.5,1.73833108]
[1724153439429,1.594,2655.8,2655.5,1.73833108]
[1724153441243,1.594,2655.8,2655.5,9.26979108]
[1724153441560,1.594,2655.8,2655.5,5.50406108]
[1724153441926,1.594,2655.8,2655.6,0.55040611]
[1724153444775,2.3105,2656.1,2655.6,4.31602611]
[1724153444776,1.594,2656.0,2655.6,4.31602611]
[1724153445137,1.594,2656.2,2655.9,3.7652]
[1724153445343,1.594,2656.2,2655.8,3.76521]
[1724153445525,1.594,2656.2,2655.8,7.53046]
[1724153445726,1.594,2656.2,2655.8,4.57329661]
[1724153446657,1.594,2656.2,2655.9,3.76511]
[1724153447344,1.594,2656.2,2655.8,4.57342661]
[1724153449177,1.594,2656.2,2655.9,0.00375089]
[1724153449580,1.594,2656.2,2656.0,3.76505]
[1724153449760,1.594,2656.2,2656.0,4.59926375]
[1724153450950,4.0637,2656.4,2656.0,4.59926375]
[1724153451544,4.0637,2656.4,2656.0,0.83421375]
[1724153452569,1.594,2656.4,2656.0,0.83421375]
[1724153452770,1.594,2656.4,2656.1,3.76485]
[1724153453580,1.594,2656.4,2656.1,4.22513146]
[1724153454358,1.594,2656.4,2656.1,7.98997146]
[1724153454561,1.594,2656.4,2656.2,3.76476]
[1724153454769,2.345,2656.6,2656.1,4.22512146]
[1724153454770,3.939,2656.6,2656.3,3.76463]
[1724153454971,1.594,2656.6,2656.3,3.76463]
[1724153455192,1.594,2656.6,2656.4,4.369333]
[1724153457568,1.594,2656.6,2656.5,35.0]
[1724153458098,3.8597,2657.0,2656.5,38.76424]
[1724153458258,1.594,2656.8,2656.5,35.0]
[1724153458461,1.594,2656.8,2656.6,3.73531554]
[1724153461098,1.594,2657.0,2656.6,3.73531554]
[1724153461320,1.594,2657.0,2656.6,9.83358974]
[1724153461614,1.594,2657.2,2656.7,3.76399]
[1724153461756,1.594,2657.2,2656.8,1.35221955]
[1724153461959,1.594,2657.2,2656.8,5.11611955]
[1724153462162,1.594,2657.4,2656.8,5.11611955]
[1724153462408,6.12883,2657.5,2656.8,5.11611955]
[1724153462409,3.9598,2657.5,2657.0,3.76356]
[1724153462564,3.9598,2657.5,2657.1,0.608426]
[1724153463418,1.594,2657.5,2657.1,0.608426]
[1724153463695,1.594,2657.5,2657.1,35.608426]
[1724153464282,1.594,2657.5,2657.1,35.61217689]
[1724153465371,1.594,2657.5,2657.2,0.62941273]
[1724153466294,1.594,2657.7,2657.2,4.39276273]
[1724153466501,1.594,2657.7,2657.2,0.62941273]
[1724153467303,1.594,2657.7,2657.2,35.62941273]
[1724153467986,2.4342,2658.0,2657.3,2.2953]
[1724153468306,2.4342,2658.0,2657.4,3.81056828]
[1724153468307,1.594,2657.9,2657.4,3.81056828]
[1724153468972,1.594,2657.9,2657.4,7.57361828]
[1724153469298,1.594,2657.9,2657.4,11.33655828]
[1724153469490,1.594,2657.9,2657.5,1.36318583]
[1724153469800,1.594,2657.9,2657.5,1.43843662]
[1724153470164,1.594,2657.9,2657.5,1.36318583]
[1724153470400,1.594,2658.1,2657.6,3.76276]
[1724153470863,1.594,2658.1,2657.6,7.52546]
[1724153471195,1.594,2658.1,2657.7,3.23960867]
[1724153471761,3.76174,2658.4,2657.7,3.16436458]
[1724153471962,1.594,2658.1,2657.7,3.16436458]
[1724153472868,1.594,2658.1,2657.7,6.92693458]
[1724153474178,1.594,2658.1,2657.8,35.0]
[1724153474401,1.594,2658.1,2657.8,38.73531554]
[1724153475405,1.594,2658.1,2657.8,35.0]
[1724153475710,3.9803,2658.1,2657.8,35.0]
[1724153476033,1.594,2658.1,2657.8,35.0]
[1724153476807,1.594,2658.3,2657.9,6.06318646]
[1724153477015,0.55,2658.2,2657.9,2.4743]
[1724153478032,6.20608,2658.6,2657.9,6.23665]
[1724153478234,1.594,2658.4,2657.9,6.23665]
[1724153478518,1.594,2658.4,2657.9,3.54780046]
[1724153479258,2.4447,2658.6,2657.9,7.31014046]
[1724153479519,1.594,2658.5,2658.0,3.7621]
[1724153480106,1.594,2658.5,2658.1,3.76207]
[1724153480288,1.594,2658.5,2658.2,0.376207]
[1724153480712,2.4327,2659.1,2658.3,2.4684]
[1724153480911,1.594,2658.8,2658.3,6.23015]
[1724153481319,1.594,2658.8,2658.3,2.4684]
[1724153481505,1.594,2658.8,2658.4,35.0]
[1724153481919,1.594,2658.8,2658.3,2.4684]
[1724153482114,1.594,2658.8,2658.3,3.5052497]
[1724153482413,1.594,2658.8,2658.3,38.5052497]
[1724153482620,5.35483,2659.0,2658.3,42.2670497]
[1724153482998,1.594,2658.8,2658.3,42.2670497]
[1724153483196,1.594,2658.8,2658.4,3.73531554]
[1724153483533,3.76083,2659.0,2658.4,3.73531554]
[1724153483534,1.594,2659.0,2658.4,3.73531554]
[1724153484114,1.594,2659.0,2658.3,11.0286597]
[1724153484326,2.4327,2659.1,2658.5,3.76141]
[1724153484496,2.4627,2659.4,2658.7,3.7611]
[1724153485036,2.4627,2659.4,2658.6,3.9657]
[1724153485037,5.35446,2659.3,2658.6,2.3717]
[1724153485198,1.594,2659.4,2658.7,3.7612]
[1724153485400,1.594,2659.4,2658.8,0.61329]
[1724153485594,1.594,2659.2,2658.8,0.61329]
[1724153485796,2.3125,2659.1,2658.6,2.3717]
[1724153486100,1.594,2659.2,2658.6,6.13303]
[1724153486310,3.76047,2659.3,2658.7,35.0]
[1724153486507,0.55,2659.2,2658.6,2.3717]
[1724153486738,1.594,2659.1,2658.4,22.11]
[1724153486905,1.594,2658.9,2658.4,22.11]
[1724153487104,1.594,2658.9,2658.5,35.0]
[1724153487508,0.55,2659.0,2658.5,35.0]
[1724153488102,1.594,2659.1,2658.6,3.76134]
[1724153488299,1.594,2659.1,2658.7,3.73531554]
[1724153488551,2.2794,2659.3,2658.6,3.76134]
[1724153488783,0.55,2659.2,2658.7,35.0]
[1724153488940,3.76005,2659.6,2658.7,35.0]
[1724153488941,6.10355,2659.6,2658.8,2.4094]
[1724153489139,3.76013,2659.5,2658.8,6.17039]
[1724153489380,3.76013,2659.5,2658.7,35.0]
[1724153489381,3.76042,2659.3,2658.7,35.0]
[1724153489551,2.3435,2659.2,2658.7,35.0]
[1724153489758,2.3435,2659.2,2658.6,2.4094]
[1724153489961,2.3435,2659.2,2657.2,0.78331488]
[1724153489962,3.76155,2658.5,2657.8,7.31]
[1724153490296,3.76155,2658.5,2657.7,2.4963]
[1724153490297,0.376155,2658.4,2657.7,37.4963]
[1724153490497,3.76155,2658.5,2657.7,37.4963]
[1724153490808,0.55,2658.4,2657.7,37.4963]
[1724153491875,3.76162,2658.5,2657.7,37.4963]
[1724153492080,0.55,2658.4,2657.7,37.4963]
[1724153492289,0.55,2658.4,2657.7,41.23161554]
[1724153493002,0.55,2658.6,2657.7,41.23161554]
[1724153493182,0.55,2658.6,2657.8,3.7625]
[1724153493369,0.55,2658.6,2657.8,3.76241]
[1724153493676,0.55,2658.6,2657.9,3.76235]
[1724153493878,0.55,2658.6,2658.0,35.0]
[1724153494601,0.55,2658.6,2658.0,38.76222]